[Event "4. Memorial Svat.Hastika OPEN"]
[Site "Jesenik, Czech Republic"]
[Date "2022.09.03"]
[Round "7.2"]
[White "Haidenko, Mykola"]
[Black "Banasik, Krzysztof"]
[Result "0-1"]
[TimeControl "720+3"]
[WhiteFideId "23731958"]
[BlackFideId "1125222"]
[WhiteElo "1429"]
[BlackElo "2166"]

1. e4 {[%clk 00:12:06]} d6 {[%clk 00:12:04]} {[%emt 00:00:02]} 2. d4 {[%clk
00:12:06]} {[%emt 00:00:03]} Nf6 {[%clk 00:12:06]} 3. Nc3 {[%clk 00:12:08]}
{[%emt 00:00:02]} e5 {[%clk 00:12:05]} {[%emt 00:00:03]} 4. dxe5 {[%clk
00:12:06]} {[%emt 00:00:04]} dxe5 {[%clk 00:12:07]} {[%emt 00:00:01]} 5. Nf3
{[%clk 00:12:04]} {[%emt 00:00:05]} Qxd1+ {[%clk 00:12:06]} {[%emt 00:00:04]} 6.
Kxd1 {[%clk 00:12:05]} {[%emt 00:00:02]} Bg4 {[%clk 00:12:00]} {[%emt
00:00:09]} 7. Be2 {[%clk 00:12:07]} {[%emt 00:00:01]} Nc6 {[%clk 00:11:55]}
{[%emt 00:00:08]} 8. Be3 {[%clk 00:12:04]} {[%emt 00:00:06]} Bb4 {[%clk
00:11:48]} {[%emt 00:00:09]} 9. Nd5 {[%clk 00:11:47]} {[%emt 00:00:21]} O-O-O
{[%clk 00:11:26]} {[%emt 00:00:25]} 10. c4 {[%clk 00:11:46]} {[%emt 00:00:05]}
Nxe4 {[%clk 00:11:11]} {[%emt 00:00:17]} 11. Kc2 {[%clk 00:11:39]} {[%emt
00:00:11]} Bc5 {[%clk 00:11:00]} {[%emt 00:00:13]} 12. Bxc5 {[%clk 00:11:31]}
{[%emt 00:00:11]} Nxc5 {[%clk 00:11:00]} {[%emt 00:00:02]} 13. h3 {[%clk
00:11:28]} {[%emt 00:00:07]} Bf5+ {[%clk 00:10:09]} {[%emt 00:00:53]} 14. Kc3
{[%clk 00:10:40]} {[%emt 00:00:52]} Ne4+ {[%clk 00:09:46]} {[%emt 00:00:26]} 15.
Kb3 {[%clk 00:10:39]} {[%emt 00:00:05]} Nxf2 {[%clk 00:09:37]} {[%emt
00:00:11]} 16. Rhf1 {[%clk 00:10:40]} {[%emt 00:00:02]} Ne4 {[%clk 00:09:34]}
{[%emt 00:00:06]} 17. Nxe5 {[%clk 00:10:32]} {[%emt 00:00:11]} Nd4+ {[%clk
00:08:27]} {[%emt 00:01:09]} 18. Ka4 {[%clk 00:10:19]} {[%emt 00:00:16]} Rd6
{[%clk 00:06:53]} {[%emt 00:01:38]} 19. Bd3 {[%clk 00:09:28]} {[%emt 00:00:55]}
Ra6+ {[%clk 00:06:32]} {[%emt 00:00:24]} 20. Kb4 {[%clk 00:09:27]} {[%emt
00:00:04]} Rd6 {[%emt 00:00:11]} 21. Ka4 Nc5+ {[%emt 00:00:04]} 0-1

[Event "4. Memorial Svat.Hastika OPEN"]
[Site "Jesenik, Czech Republic"]
[Date "2022.09.03"]
[Round "7.3"]
[White "Gawlas, Roman"]
[Black "Cechacek, Miroslav"]
[Result "1-0"]
[TimeControl "720+3"]
[WhiteFideId "351652"]
[BlackFideId "377090"]
[WhiteElo "1906"]
[BlackElo "1541"]

1. d4 {[%clk 00:12:04]} {[%emt 00:00:02]} e6 {[%clk 00:12:01]} {[%emt
00:00:06]} 2. c4 {[%clk 00:12:05]} {[%emt 00:00:01]} c5 {[%clk 00:12:01]}
{[%emt 00:00:03]} 3. d5 {[%clk 00:11:59]} {[%emt 00:00:08]} d6 {[%clk
00:12:01]} {[%emt 00:00:03]} 4. Nc3 {[%clk 00:12:01]} {[%emt 00:00:02]} Nf6
{[%clk 00:11:51]} {[%emt 00:00:13]} 5. e4 {[%clk 00:11:58]} {[%emt 00:00:05]}
e5 {[%clk 00:11:50]} {[%emt 00:00:04]} 6. Nf3 {[%clk 00:11:56]} {[%emt
00:00:05]} Bg4 {[%clk 00:11:51]} {[%emt 00:00:02]} 7. Qa4+ {[%clk 00:11:54]}
{[%emt 00:00:05]} Qd7 {[%clk 00:10:34]} {[%emt 00:01:20]} 8. Nb5 {[%clk
00:10:44]} {[%emt 00:01:13]} Na6 {[%clk 00:10:28]} {[%emt 00:00:09]} 9. Nd2
{[%clk 00:10:21]} {[%emt 00:00:26]} Kd8 {[%clk 00:08:15]} {[%emt 00:02:16]} 10.
f3 {[%clk 00:09:40]} {[%emt 00:00:44]} Bh5 {[%clk 00:08:16]} {[%emt 00:00:02]}
11. Qa5+ {[%clk 00:08:31]} {[%emt 00:01:13]} Kc8 {[%clk 00:07:38]} {[%emt
00:00:41]} 12. Qc3 {[%clk 00:06:29]} {[%emt 00:02:05]} Nc7 {[%clk 00:07:17]}
{[%emt 00:00:23]} 13. Nxc7 {[%clk 00:06:07]} {[%emt 00:00:25]} Qxc7 {[%clk
00:07:03]} {[%emt 00:00:17]} 14. h4 {[%clk 00:06:00]} {[%emt 00:00:11]} h6
{[%clk 00:06:17]} {[%emt 00:00:49]} 15. g4 {[%clk 00:04:43]} {[%emt 00:01:20]}
Bg6 {[%clk 00:06:18]} 16. Bh3 {[%clk 00:04:45]} {[%emt 00:00:01]} Kb8 {[%clk
00:06:18]} {[%emt 00:00:04]} 17. b4 {[%clk 00:04:35]} {[%emt 00:00:12]} cxb4
{[%clk 00:05:46]} {[%emt 00:00:35]} 18. Qxb4 {[%clk 00:04:35]} {[%emt
00:00:03]} Qc5 {[%clk 00:05:42]} {[%emt 00:00:07]} 19. Qc3 {[%clk 00:04:00]}
{[%emt 00:00:38]} Qd4 {[%clk 00:04:38]} {[%emt 00:01:06]} 20. Qxd4 {[%clk
00:03:46]} {[%emt 00:00:18]} exd4 {[%clk 00:04:40]} {[%emt 00:00:01]} 21. Bb2
{[%clk 00:03:38]} {[%emt 00:00:12]} Nd7 {[%clk 00:04:42]} 22. Bxd4 {[%clk
00:03:33]} {[%emt 00:00:08]} Nb6 {[%clk 00:04:31]} {[%emt 00:00:14]} 23. a4
{[%clk 00:02:31]} f6 {[%clk 00:04:31]} 24. Ke2 {[%clk 00:02:31]} {[%emt
00:01:10]} Be7 {[%clk 00:04:34]} 25. a5 {[%clk 00:02:15]} {[%emt 00:00:20]} Nd7
{[%clk 00:04:35]} {[%emt 00:00:02]} 26. Rhb1 {[%clk 00:02:15]} {[%emt
00:00:03]} Nc5 {[%clk 00:04:23]} {[%emt 00:00:14]} 27. Nb3 {[%clk 00:01:33]}
{[%emt 00:00:45]} Rc8 {[%clk 00:04:25]} {[%emt 00:00:02]} 28. Nxc5 {[%clk
00:01:33]} {[%emt 00:00:03]} dxc5 {[%clk 00:04:26]} {[%emt 00:00:01]} 29. Be3
{[%clk 00:01:28]} {[%emt 00:00:09]} Bd6 {[%clk 00:04:26]} {[%emt 00:00:03]} 30.
Ra3 {[%clk 00:01:21]} {[%emt 00:00:10]} Rc7 {[%clk 00:04:26]} {[%emt 00:00:02]}
31. Rab3 {[%clk 00:01:17]} {[%emt 00:00:07]} a6 {[%clk 00:04:17]} {[%emt
00:00:12]} 32. Rb6 {[%clk 00:01:13]} {[%emt 00:00:07]} Rd7 {[%clk 00:04:01]}
{[%emt 00:00:19]} 33. g5 {[%clk 00:01:05]} {[%emt 00:00:11]} f5 {[%clk
00:03:43]} {[%emt 00:00:22]} 34. exf5 {[%clk 00:01:06]} {[%emt 00:00:02]} Bh7
{[%clk 00:03:45]} 35. f6 {[%clk 00:01:00]} {[%emt 00:00:09]} Bxb1 {[%clk
00:03:46]} {[%emt 00:00:01]} 36. Bxd7 {[%clk 00:00:45]} {[%emt 00:00:18]} Bc7
{[%clk 00:03:48]} 37. Rxb1 {[%clk 00:00:45]} {[%emt 00:00:03]} gxf6 {[%clk
00:03:41]} {[%emt 00:00:10]} 38. gxh6 {[%clk 00:00:40]} {[%emt 00:00:08]} Ka7
{[%clk 00:03:43]} {[%emt 00:00:01]} 39. Bxc5+ {[%clk 00:00:40]} {[%emt
00:00:03]} 1-0

[Event "4. Memorial Svat.Hastika OPEN"]
[Site "Jesenik, Czech Republic"]
[Date "2022.09.03"]
[Round "7.4"]
[White "Cempel, Jaroslav"]
[Black "Skovron, Josef"]
[Result "0-1"]
[TimeControl "720+3"]
[WhiteFideId "300730"]
[BlackFideId "329886"]
[WhiteElo "1911"]
[BlackElo "1821"]

1. d4 {[%clk 00:12:04]} {[%emt 00:00:02]} Nf6 {[%clk 00:12:04]} {[%emt
00:00:02]} 2. Bg5 {[%clk 00:12:06]} e6 {[%clk 00:11:49]} {[%emt 00:00:18]} 3.
e3 {[%clk 00:12:03]} {[%emt 00:00:06]} Be7 {[%clk 00:11:47]} {[%emt 00:00:05]}
4. Bd3 {[%clk 00:12:05]} {[%emt 00:00:01]} b6 {[%clk 00:11:45]} {[%emt
00:00:06]} 5. Nf3 {[%clk 00:12:02]} {[%emt 00:00:05]} Bb7 {[%clk 00:11:46]}
{[%emt 00:00:02]} 6. O-O {[%clk 00:12:02]} {[%emt 00:00:02]} O-O {[%clk
00:11:45]} {[%emt 00:00:05]} 7. c4 {[%clk 00:11:59]} {[%emt 00:00:05]} d5
{[%clk 00:11:41]} {[%emt 00:00:07]} 8. Nc3 {[%clk 00:11:55]} {[%emt 00:00:07]}
Nbd7 {[%clk 00:11:25]} {[%emt 00:00:20]} 9. Rc1 {[%clk 00:11:45]} {[%emt
00:00:13]} dxc4 {[%clk 00:11:24]} {[%emt 00:00:04]} 10. Bxc4 {[%clk 00:11:44]}
{[%emt 00:00:04]} c5 {[%clk 00:11:22]} {[%emt 00:00:04]} 11. Be2 {[%clk
00:11:20]} {[%emt 00:00:27]} Rc8 {[%clk 00:11:14]} {[%emt 00:00:11]} 12. Qa4
{[%clk 00:10:48]} {[%emt 00:00:35]} a6 {[%clk 00:10:51]} {[%emt 00:00:27]} 13.
dxc5 {[%clk 00:10:36]} {[%emt 00:00:14]} Nxc5 {[%clk 00:10:52]} {[%emt
00:00:03]} 14. Qh4 {[%clk 00:10:34]} {[%emt 00:00:05]} Re8 {[%clk 00:10:16]}
{[%emt 00:00:39]} 15. Rfd1 {[%clk 00:10:19]} {[%emt 00:00:17]} Qc7 {[%clk
00:09:59]} {[%emt 00:00:20]} 16. Na4 {[%clk 00:06:36]} {[%emt 00:03:47]} Qc6
{[%clk 00:07:33]} {[%emt 00:02:29]} 17. Nxc5 {[%clk 00:06:25]} {[%emt
00:00:13]} bxc5 {[%clk 00:07:35]} {[%emt 00:00:02]} 18. b4 {[%clk 00:06:13]}
{[%emt 00:00:14]} Qb6 {[%clk 00:07:01]} {[%emt 00:00:38]} 19. bxc5 {[%clk
00:05:49]} {[%emt 00:00:26]} Rxc5 {[%clk 00:06:43]} {[%emt 00:00:20]} 20. Rxc5
{[%clk 00:04:41]} {[%emt 00:01:12]} Qxc5 {[%clk 00:06:30]} {[%emt 00:00:15]} 21.
Qd4 {[%clk 00:03:41]} {[%emt 00:01:02]} Qxd4 {[%clk 00:05:16]} {[%emt
00:01:19]} 22. Nxd4 {[%clk 00:03:26]} {[%emt 00:00:18]} h6 {[%clk 00:05:01]}
{[%emt 00:00:18]} 23. Bh4 {[%clk 00:03:04]} {[%emt 00:00:25]} Rd8 {[%clk
00:04:40]} {[%emt 00:00:24]} 24. Rb1 {[%clk 00:02:54]} {[%emt 00:00:14]} Bd5
{[%clk 00:04:32]} {[%emt 00:00:11]} 25. a4 {[%clk 00:02:37]} {[%emt 00:00:20]}
g5 {[%clk 00:04:12]} {[%emt 00:00:23]} 26. Bg3 {[%clk 00:02:37]} {[%emt
00:00:03]} Bd6 {[%clk 00:04:04]} {[%emt 00:00:10]} 27. Bxa6 {[%clk 00:02:28]}
{[%emt 00:00:13]} Ne4 {[%clk 00:03:41]} {[%emt 00:00:27]} 28. Bb5 {[%clk
00:02:00]} {[%emt 00:00:31]} Bxg3 {[%clk 00:03:15]} {[%emt 00:00:28]} 29. hxg3
{[%clk 00:01:55]} {[%emt 00:00:08]} Kf8 {[%clk 00:02:53]} {[%emt 00:00:25]} 30.
Rc1 {[%clk 00:01:52]} {[%emt 00:00:06]} e5 {[%clk 00:02:11]} {[%emt 00:00:45]}
31. Nf5 {[%clk 00:01:41]} {[%emt 00:00:13]} h5 {[%clk 00:01:56]} {[%emt
00:00:18]} 32. Bd3 {[%clk 00:01:03]} {[%emt 00:00:41]} Ra8 {[%clk 00:01:48]}
{[%emt 00:00:11]} 33. f3 {[%clk 00:00:00]} {[%emt 00:01:06]} 0-1

[Event "4. Memorial Svat.Hastika OPEN"]
[Site "Jesenik, Czech Republic"]
[Date "2022.09.03"]
[Round "7.5"]
[White "Zrubek, Dan"]
[Black "Bares, Jachym"]
[Result "1-0"]
[TimeControl "720+3"]
[WhiteFideId "23718714"]
[BlackFideId "345075"]
[WhiteElo "1504"]
[BlackElo "1978"]

1. e4 {[%clk 00:12:04]} {[%emt 00:00:02]} e5 {[%clk 00:12:06]} 2. Nf3 {[%clk
00:12:05]} Nc6 {[%clk 00:12:08]} {[%emt 00:00:01]} 3. Bb5 {[%clk 00:12:07]} f5
{[%clk 00:12:10]} {[%emt 00:00:01]} 4. d3 {[%clk 00:12:08]} {[%emt 00:00:02]}
fxe4 {[%clk 00:12:11]} {[%emt 00:00:01]} 5. dxe4 {[%clk 00:12:10]} {[%emt
00:00:02]} Nf6 {[%clk 00:12:13]} {[%emt 00:00:01]} 6. O-O {[%clk 00:12:05]}
{[%emt 00:00:08]} Bc5 {[%clk 00:12:14]} {[%emt 00:00:03]} 7. Qd3 {[%clk
00:12:06]} {[%emt 00:00:01]} d6 {[%clk 00:12:13]} {[%emt 00:00:03]} 8. Qc4
{[%clk 00:11:40]} {[%emt 00:00:30]} Bd7 {[%clk 00:12:02]} {[%emt 00:00:14]} 9.
Nc3 {[%clk 00:11:24]} {[%emt 00:00:19]} Qe7 {[%clk 00:11:06]} {[%emt 00:00:59]}
10. Nd5 {[%clk 00:09:42]} {[%emt 00:01:45]} Nxd5 {[%clk 00:11:02]} {[%emt
00:00:07]} 11. exd5 {[%clk 00:09:37]} {[%emt 00:00:08]} Nd4 {[%clk 00:11:04]}
{[%emt 00:00:01]} 12. Nxd4 {[%clk 00:08:30]} {[%emt 00:01:10]} Bxd4 {[%clk
00:11:05]} {[%emt 00:00:01]} 13. c3 {[%clk 00:08:26]} {[%emt 00:00:07]} Bb6
{[%clk 00:11:00]} {[%emt 00:00:09]} 14. Be3 {[%clk 00:07:54]} {[%emt 00:00:35]}
O-O {[%clk 00:10:31]} {[%emt 00:00:32]} 15. Bxd7 {[%clk 00:07:18]} {[%emt
00:00:39]} Qxd7 {[%clk 00:10:33]} 16. Rae1 {[%clk 00:07:14]} {[%emt 00:00:07]}
Rf6 {[%emt 00:00:53]} 17. f4 {[%clk 00:06:56]} Raf8 {[%clk 00:08:54]} {[%emt
00:01:11]} 18. Bxb6 {[%clk 00:06:35]} {[%emt 00:00:25]} axb6 {[%clk 00:08:03]}
{[%emt 00:00:53]} 19. fxe5 {[%clk 00:06:32]} {[%emt 00:00:06]} Rxf1+ {[%clk
00:07:25]} {[%emt 00:00:42]} 20. Rxf1 {[%clk 00:06:34]} Rxf1+ {[%clk 00:07:26]}
{[%emt 00:00:01]} 21. Qxf1 {[%clk 00:06:33]} {[%emt 00:00:05]} dxe5 {[%clk
00:07:27]} {[%emt 00:00:02]} 22. Qc4 {[%clk 00:06:06]} {[%emt 00:00:29]} b5
{[%clk 00:07:05]} {[%emt 00:00:26]} 23. Qe4 {[%clk 00:05:58]} {[%emt 00:00:11]}
Qd6 {[%clk 00:07:02]} {[%emt 00:00:05]} 24. Kf2 {[%clk 00:05:40]} {[%emt
00:00:21]} h6 {[%clk 00:07:01]} {[%emt 00:00:04]} 25. a3 {[%clk 00:04:19]}
{[%emt 00:01:25]} c6 {[%clk 00:06:55]} {[%emt 00:00:09]} 26. dxc6 {[%clk
00:04:03]} {[%emt 00:00:20]} bxc6 {[%clk 00:06:57]} 27. Ke2 {[%clk 00:02:50]}
{[%emt 00:01:14]} Qc5 {[%clk 00:06:44]} {[%emt 00:00:16]} 28. h3 {[%clk
00:01:48]} {[%emt 00:01:05]} Kf7 {[%clk 00:06:15]} {[%emt 00:00:31]} 29. Kd3
{[%clk 00:00:50]} {[%emt 00:01:00]} Kf6 {[%clk 00:06:13]} {[%emt 00:00:08]} 30.
Qh4+ {[%clk 00:00:29]} {[%emt 00:00:19]} Ke6 {[%clk 00:06:15]} {[%emt
00:00:06]} 31. Qg4+ {[%clk 00:00:28]} {[%emt 00:00:03]} Kf6 {[%clk 00:05:41]}
{[%emt 00:00:37]} 32. Qh4+ {[%clk 00:00:17]} {[%emt 00:00:14]} Kf7 {[%clk
00:05:41]} {[%emt 00:00:03]} 33. Qh5+ {[%clk 00:00:05]} {[%emt 00:00:14]} Ke7
{[%clk 00:05:44]} {[%emt 00:00:02]} 34. Qh4+ {[%clk 00:00:07]} {[%emt
00:00:01]} Kd7 {[%clk 00:05:37]} {[%emt 00:00:10]} 35. Qg4+ {[%clk 00:00:06]}
{[%emt 00:00:04]} Kd6 {[%clk 00:05:25]} {[%emt 00:00:15]} 36. Qb4 {[%clk
00:00:07]} {[%emt 00:00:02]} Qxb4 {[%clk 00:05:11]} {[%emt 00:00:17]} 37. cxb4
{[%clk 00:00:04]} {[%emt 00:00:06]} Kd5 {[%clk 00:05:12]} {[%emt 00:00:02]} 38.
b3 {[%clk 00:00:06]} {[%emt 00:00:01]} c5 {[%clk 00:02:59]} {[%emt 00:02:16]}
39. bxc5 {[%clk 00:00:06]} {[%emt 00:00:03]} Kxc5 {[%clk 00:03:01]} 40. Ke4
{[%clk 00:00:08]} Kd6 {[%clk 00:03:01]} {[%emt 00:00:03]} 41. a4 {[%clk
00:00:08]} {[%emt 00:00:03]} b4 {[%clk 00:03:04]} 42. a5 {[%clk 00:00:09]}
{[%emt 00:00:02]} Kc5 {[%clk 00:02:56]} {[%emt 00:00:11]} 43. Kxe5 {[%clk
00:00:11]} Kb5 {[%clk 00:02:58]} 44. Kd4 {[%clk 00:00:13]} Kxa5 {[%clk
00:03:00]} 45. Kc5 {[%clk 00:00:15]} Ka6 {[%clk 00:03:02]} 46. Kxb4 {[%clk
00:00:17]} 1-0

[Event "4. Memorial Svat.Hastika OPEN"]
[Site "Jesenik, Czech Republic"]
[Date "2022.09.03"]
[Round "7.7"]
[White "Kincl, Dobromir"]
[Black "Zrubek, Adam"]
[Result "1/2-1/2"]
[TimeControl "720+3"]
[BlackFideId "23718706"]
[WhiteElo "1683"]
[BlackElo "1583"]

1. d4 {[%clk 00:12:05]} {[%emt 00:00:01]} d5 {[%clk 00:12:05]} 2. c4 {[%clk
00:12:06]} {[%emt 00:00:01]} Nc6 {[%clk 00:12:07]} {[%emt 00:00:02]} 3. cxd5
{[%clk 00:12:06]} {[%emt 00:00:02]} Qxd5 {[%clk 00:12:07]} {[%emt 00:00:05]} 4.
e3 {[%clk 00:12:06]} {[%emt 00:00:03]} e5 {[%clk 00:12:08]} {[%emt 00:00:03]} 5.
Nc3 {[%clk 00:11:57]} {[%emt 00:00:12]} Bb4 {[%clk 00:12:07]} {[%emt 00:00:03]}
6. a3 {[%clk 00:11:58]} {[%emt 00:00:02]} Bxc3+ {[%clk 00:12:09]} 7. bxc3
{[%clk 00:12:00]} {[%emt 00:00:01]} Nf6 {[%clk 00:11:41]} {[%emt 00:00:31]} 8.
c4 {[%clk 00:12:00]} {[%emt 00:00:03]} Qd6 {[%clk 00:11:11]} {[%emt 00:00:33]}
9. d5 {[%clk 00:11:59]} {[%emt 00:00:04]} Ne7 {[%clk 00:11:07]} {[%emt
00:00:07]} 10. Nf3 {[%clk 00:10:49]} {[%emt 00:01:13]} Bg4 {[%clk 00:10:47]}
{[%emt 00:00:23]} 11. Be2 {[%clk 00:10:36]} {[%emt 00:00:15]} O-O {[%clk
00:10:33]} {[%emt 00:00:18]} 12. Bb2 {[%clk 00:10:12]} {[%emt 00:00:26]} Ng6
{[%clk 00:10:08]} {[%emt 00:00:29]} 13. O-O {[%clk 00:10:06]} {[%emt 00:00:09]}
Nd7 {[%clk 00:08:30]} {[%emt 00:01:41]} 14. Ng5 {[%clk 00:09:26]} {[%emt
00:00:42]} Bxe2 {[%clk 00:07:38]} {[%emt 00:00:56]} 15. Qxe2 {[%clk 00:09:26]}
{[%emt 00:00:02]} Qe7 {[%clk 00:07:27]} {[%emt 00:00:15]} 16. Qh5 {[%clk
00:08:26]} {[%emt 00:01:01]} Nf6 {[%clk 00:06:16]} {[%emt 00:01:16]} 17. Qd1
{[%clk 00:07:16]} {[%emt 00:01:10]} Nd7 {[%clk 00:05:48]} {[%emt 00:00:34]} 18.
Qh5 {[%clk 00:06:45]} {[%emt 00:00:31]} h6 {[%clk 00:04:59]} {[%emt 00:00:49]}
19. Ne4 {[%emt 00:00:12]} 1/2-1/2

[Event "4. Memorial Svat.Hastika OPEN"]
[Site "Jesenik, Czech Republic"]
[Date "2022.09.03"]
[Round "7.8"]
[White "Basler, Jan"]
[Black "Cimburek, Jan"]
[Result "0-1"]
[TimeControl "720+3"]
[WhiteFideId "23718420"]
[BlackFideId "390283"]
[WhiteElo "1285"]
[BlackElo "1591"]

1. e4 {[%clk 00:12:04]} {[%emt 00:00:02]} c5 {[%clk 00:12:03]} {[%emt
00:00:03]} 2. Nf3 {[%clk 00:12:05]} g6 {[%clk 00:12:05]} {[%emt 00:00:01]} 3.
Bc4 {[%clk 00:12:06]} {[%emt 00:00:02]} Bg7 {[%clk 00:12:07]} 4. d3 {[%clk
00:12:06]} {[%emt 00:00:03]} Nc6 {[%clk 00:12:09]} {[%emt 00:00:02]} 5. c3
{[%clk 00:12:08]} e6 {[%clk 00:12:05]} {[%emt 00:00:07]} 6. Be3 {[%clk
00:12:10]} b6 {[%clk 00:12:05]} {[%emt 00:00:03]} 7. Nbd2 {[%clk 00:12:09]}
{[%emt 00:00:04]} d5 {[%clk 00:12:06]} {[%emt 00:00:02]} 8. Bb3 {[%clk
00:12:10]} {[%emt 00:00:02]} Nge7 {[%clk 00:12:03]} {[%emt 00:00:06]} 9. O-O
{[%clk 00:11:27]} {[%emt 00:00:46]} O-O {[%clk 00:12:03]} {[%emt 00:00:03]} 10.
Bc2 {[%clk 00:11:26]} {[%emt 00:00:04]} Bb7 {[%clk 00:12:00]} {[%emt 00:00:07]}
11. exd5 {[%clk 00:11:07]} {[%emt 00:00:21]} Nxd5 {[%clk 00:11:46]} {[%emt
00:00:16]} 12. Re1 {[%clk 00:11:04]} {[%emt 00:00:07]} Nxe3 {[%clk 00:11:48]}
13. Rxe3 {[%clk 00:11:05]} {[%emt 00:00:02]} Qc7 {[%clk 00:11:33]} {[%emt
00:00:18]} 14. Nb3 {[%clk 00:10:41]} {[%emt 00:00:27]} Rfd8 {[%clk 00:11:27]}
{[%emt 00:00:09]} 15. Qe2 {[%clk 00:10:38]} {[%emt 00:00:06]} Rd7 {[%clk
00:10:59]} {[%emt 00:00:30]} 16. Rd1 {[%clk 00:10:39]} {[%emt 00:00:03]} Rad8
{[%emt 00:00:02]} 17. Nbd2 {[%clk 00:09:29]} {[%emt 00:01:13]} Ba6 {[%clk
00:10:40]} {[%emt 00:00:24]} 18. Nc4 {[%clk 00:08:26]} {[%emt 00:01:06]} Bxc4
{[%emt 00:00:22]} 19. dxc4 {[%clk 00:08:28]} Rxd1+ {[%clk 00:10:23]} {[%emt
00:00:02]} 20. Bxd1 {[%clk 00:08:30]} e5 {[%clk 00:09:02]} {[%emt 00:01:25]} 21.
a3 {[%clk 00:08:07]} {[%emt 00:00:26]} f5 {[%clk 00:08:54]} {[%emt 00:00:10]}
22. b4 {[%clk 00:08:00]} {[%emt 00:00:10]} e4 {[%clk 00:08:48]} {[%emt
00:00:08]} 23. Nd2 {[%clk 00:08:00]} {[%emt 00:00:04]} cxb4 {[%clk 00:08:42]}
{[%emt 00:00:09]} 24. cxb4 {[%clk 00:08:01]} {[%emt 00:00:01]} Nd4 {[%clk
00:08:26]} {[%emt 00:00:20]} 25. Qf1 {[%clk 00:07:31]} {[%emt 00:00:33]} Bh6
{[%clk 00:08:12]} {[%emt 00:00:18]} 26. f4 {[%clk 00:06:27]} {[%emt 00:01:05]}
Bxf4 {[%clk 00:07:16]} {[%emt 00:00:59]} 27. Qf2 {[%clk 00:06:23]} {[%emt
00:00:07]} Bxe3 {[%clk 00:07:15]} {[%emt 00:00:05]} 28. Qxe3 {[%clk 00:06:25]}
Kg7 {[%clk 00:06:18]} {[%emt 00:01:01]} 29. Qc3 {[%clk 00:06:04]} {[%emt
00:00:24]} Qe5 {[%clk 00:06:15]} {[%emt 00:00:05]} 30. Kf2 {[%clk 00:05:35]}
{[%emt 00:00:31]} Nc6 {[%clk 00:05:55]} {[%emt 00:00:24]} 31. Qxe5+ {[%clk
00:05:23]} {[%emt 00:00:16]} Nxe5 {[%clk 00:05:56]} 32. Ke3 {[%clk 00:05:16]}
{[%emt 00:00:09]} Rd3+ {[%clk 00:05:55]} {[%emt 00:00:05]} 33. Ke2 {[%clk
00:05:13]} {[%emt 00:00:07]} Rxa3 {[%clk 00:05:57]} {[%emt 00:00:01]} 34. Bb3
{[%clk 00:04:53]} {[%emt 00:00:23]} a5 {[%clk 00:05:58]} {[%emt 00:00:03]} 35.
b5 {[%clk 00:04:48]} {[%emt 00:00:07]} a4 {[%clk 00:05:57]} {[%emt 00:00:03]}
36. Bc2 {[%clk 00:04:46]} {[%emt 00:00:04]} Rc3 {[%clk 00:05:02]} {[%emt
00:01:00]} 37. Bxa4 {[%clk 00:04:12]} {[%emt 00:00:37]} Nxc4 {[%clk 00:05:03]}
{[%emt 00:00:02]} 38. Nb1 {[%clk 00:04:10]} {[%emt 00:00:05]} Rc1 {[%clk
00:04:44]} {[%emt 00:00:21]} 39. Bb3 {[%clk 00:03:52]} {[%emt 00:00:22]} Rxb1
{[%clk 00:04:41]} {[%emt 00:00:06]} 40. Bxc4 {[%clk 00:03:53]} Rb2+ {[%clk
00:04:43]} {[%emt 00:00:01]} 41. Kf1 {[%clk 00:03:55]} Kf6 {[%clk 00:04:45]}
{[%emt 00:00:01]} 42. h3 {[%clk 00:03:54]} {[%emt 00:00:04]} h6 {[%clk
00:04:47]} {[%emt 00:00:01]} 43. Kg1 {[%clk 00:03:51]} {[%emt 00:00:05]} g5
{[%clk 00:04:48]} {[%emt 00:00:02]} 44. Kh2 {[%clk 00:03:53]} f4 {[%clk
00:04:49]} {[%emt 00:00:02]} 45. h4 {[%clk 00:03:54]} {[%emt 00:00:02]} gxh4
{[%clk 00:04:36]} {[%emt 00:00:16]} 46. Kh3 {[%clk 00:03:56]} {[%emt 00:00:02]}
Kg5 {[%clk 00:04:36]} {[%emt 00:00:03]} 47. Bd5 {[%clk 00:03:54]} {[%emt
00:00:05]} e3 {[%clk 00:04:32]} {[%emt 00:00:08]} 48. Bf3 {[%clk 00:03:55]}
{[%emt 00:00:02]} e2 {[%clk 00:04:33]} {[%emt 00:00:02]} 49. Bxe2 {[%clk
00:03:56]} {[%emt 00:00:02]} Rxe2 {[%clk 00:04:34]} {[%emt 00:00:01]} 50. g3
{[%clk 00:03:57]} {[%emt 00:00:02]} Re3 {[%clk 00:04:35]} {[%emt 00:00:03]} 51.
Kh2 {[%clk 00:03:57]} {[%emt 00:00:03]} hxg3+ {[%clk 00:04:34]} {[%emt
00:00:03]} 52. Kg2 {[%clk 00:03:58]} {[%emt 00:00:02]} Kg4 {[%clk 00:04:36]}
{[%emt 00:00:02]} 53. Kh1 {[%clk 00:04:00]} f3 {[%clk 00:04:32]} {[%emt
00:00:07]} 54. Kg1 {[%clk 00:04:01]} Re1# {[%clk 00:04:30]} {[%emt 00:00:01]}
0-1